bitfinex/quotes_BTCUSD_20240902
["timestamp","ask_amount","ask_price","bid_price","bid_amount"]
[1725242778443,0.0004,57699.0,57698.0,1.87126016]
[1725242778666,0.0004,57699.0,57698.0,1.87326016]
[1725242778874,0.0004,57699.0,57698.0,1.88726016]
[1725242779501,0.0004,57699.0,57698.0,1.88526016]
[1725242781341,0.001217,57699.0,57698.0,1.88526016]
[1725242782222,0.00817,57716.0,57715.0,1.011925]
[1725242782651,0.00817,57716.0,57715.0,1.36516575]
[1725242783315,0.00817,57716.0,57715.0,1.46516575]
[1725242783578,0.00817,57716.0,57715.0,1.81869575]
[1725242783815,0.00817,57716.0,57715.0,1.82369575]
[1725242784247,0.00817,57716.0,57715.0,1.83369575]
[1725242784465,0.00817,57716.0,57715.0,1.84269575]
[1725242784908,0.00817,57716.0,57715.0,0.98203575]
[1725242785392,0.00817,57716.0,57715.0,1.34256575]
[1725242785820,0.00817,57716.0,57715.0,1.33356575]
[1725242786031,0.00817,57716.0,57715.0,1.31956575]
[1725242786257,0.00817,57716.0,57715.0,1.33356575]
[1725242786910,0.00817,57716.0,57715.0,1.50860634]
[1725242788076,0.00817,57716.0,57715.0,2.03013634]
[1725242788497,1e-06,57719.0,57718.0,1.723404]
[1725242788706,1e-06,57719.0,57718.0,1.846404]
[1725242788931,1e-06,57719.0,57718.0,1.85310848]
[1725242789146,1e-06,57719.0,57718.0,1.85510848]
[1725242789996,1e-06,57719.0,57718.0,1.86910848]
[1725242790240,1e-06,57719.0,57718.0,1.85510848]
[1725242790659,1e-06,57719.0,57718.0,1.86910848]
[1725242791297,1e-06,57719.0,57718.0,1.88310848]
[1725242791778,1e-06,57719.0,57718.0,1.86910848]
[1725242792001,1e-06,57719.0,57718.0,1.88310848]
[1725242792419,1e-06,57719.0,57718.0,1.86910848]
[1725242792648,1e-06,57719.0,57718.0,1.88310848]
[1725242792867,1e-06,57719.0,57718.0,1.88110848]
[1725242793086,1e-06,57719.0,57718.0,1.86910848]
[1725242793297,1e-06,57719.0,57718.0,1.88310848]
[1725242793980,1e-06,57719.0,57718.0,2.22962048]
[1725242794907,1e-06,57719.0,57718.0,2.21562048]
[1725242795142,1e-06,57719.0,57718.0,2.22962048]
[1725242795357,1e-06,57719.0,57718.0,1.88310848]
[1725242795614,1e-06,57719.0,57718.0,1.86910848]
[1725242796079,1e-06,57719.0,57718.0,2.22962048]
[1725242796514,1e-06,57719.0,57718.0,1.88310848]
[1725242797431,1e-06,57719.0,57718.0,1.88110848]
[1725242797650,1e-06,57719.0,57718.0,1.85810848]
[1725242798313,1e-06,57719.0,57718.0,1.86010848]
[1725242798525,1e-06,57719.0,57718.0,1.85810848]
[1725242798954,1e-06,57719.0,57718.0,1.88110848]
[1725242800991,1e-06,57719.0,57718.0,1.88310848]
[1725242802311,1e-06,57719.0,57718.0,1.88110848]
[1725242803211,1e-06,57719.0,57718.0,1.88310848]
[1725242803426,1e-06,57719.0,57718.0,1.88110848]
[1725242803641,1e-06,57719.0,57718.0,1.88310848]
[1725242803864,1e-06,57719.0,57718.0,1.88110848]
[1725242804789,1e-06,57719.0,57718.0,1.53459648]
[1725242806558,1e-06,57719.0,57718.0,1.06728448]
[1725242806792,1e-06,57719.0,57718.0,1.00098448]
[1725242807023,1e-06,57719.0,57718.0,1.50943577]
[1725242807245,1e-06,57719.0,57718.0,1.34839518]
[1725242808142,1e-06,57719.0,57718.0,1.52889518]
[1725242808372,0.0153,57743.0,57736.0,1.02705059]
[1725242808592,0.02718027,57740.0,57736.0,1.02705059]
[1725242808874,0.0153,57749.0,57736.0,1.38512148]
[1725242809076,0.01,57750.0,57736.0,1.38512148]
[1725242809077,0.01,57750.0,57749.0,1.17355559]
[1725242809309,0.01,57750.0,57749.0,1.73823715]
[1725242809525,0.01,57750.0,57749.0,1.25574428]
[1725242810459,0.346202,57770.0,57756.0,0.16104059]
[1725242810682,0.45246551,57788.0,57766.0,0.173111]
[1725242810683,0.346152,57778.0,57766.0,0.173111]
[1725242810896,0.00817,57774.0,57767.0,0.173107]
[1725242811120,0.18126,57774.0,57766.0,0.346224]
[1725242811384,0.00817,57774.0,57768.0,0.00550009]
[1725242811621,0.00817,57774.0,57767.0,0.00550183]
[1725242811841,0.00817,57774.0,57760.0,0.16104059]
[1725242811842,0.00817,57774.0,57763.0,0.17312]
[1725242812074,0.00817,57774.0,57761.0,0.01956614]
[1725242812288,0.173092,57773.0,57764.0,0.00550705]
[1725242812500,0.00817,57774.0,57763.0,0.00346204]
[1725242812728,0.00817,57774.0,57761.0,0.01610406]
[1725242812729,0.00817,57774.0,57768.0,0.16104059]
[1725242813207,0.00817,57774.0,57769.0,0.00549836]
[1725242813441,0.00817,57774.0,57773.0,0.173091]
[1725242813685,0.00817,57774.0,57773.0,0.00346127]
[1725242813915,0.00817,57774.0,57773.0,0.52526362]
[1725242814787,0.00817,57774.0,57773.0,0.53026362]
[1725242815017,0.00817,57774.0,57773.0,0.54326362]
[1725242815242,0.00817,57774.0,57773.0,0.61566362]
[1725242815501,0.00817,57774.0,57773.0,1.15094562]
[1725242815724,0.00817,57774.0,57773.0,1.49712762]
[1725242815942,0.00817,57774.0,57773.0,1.22349824]
[1725242816817,0.00817,57774.0,57773.0,1.21049824]
[1725242817081,0.00817,57774.0,57773.0,0.10599062]
[1725242817291,0.00817,57774.0,57773.0,0.00599062]
[1725242817510,0.00817,57774.0,57773.0,0.03299062]
[1725242817726,0.00817,57774.0,57773.0,0.013]
[1725242817982,0.00817,57774.0,57773.0,0.01949141]
[1725242818211,0.00817,57774.0,57773.0,0.03349141]
[1725242818904,0.181258,57774.0,57773.0,0.03349141]
[1725242819140,0.181258,57774.0,57773.0,0.028]
[1725242819141,0.00817,57774.0,57773.0,0.028]
[1725242819580,0.87361,57774.0,57773.0,0.028]
[1725242819624,0.8925522,57774.0,57773.0,0.03349141]
[1725242819820,0.181258,57774.0,57773.0,0.03349141]
[1725242820097,0.181258,57774.0,57773.0,0.028]
[1725242820098,0.00817,57774.0,57773.0,0.028]
[1725242820389,0.00817,57774.0,57773.0,0.629673]
[1725242820638,0.00817,57774.0,57773.0,0.975855]
[1725242820835,0.00817,57774.0,57773.0,0.95384562]
[1725242821058,0.00817,57774.0,57773.0,0.38448162]
[1725242821528,0.00817,57774.0,57773.0,0.35648162]
[1725242822009,0.00817,57774.0,57773.0,0.29808162]
[1725242822240,0.00817,57774.0,57773.0,0.28808162]
[1725242822461,0.00817,57774.0,57773.0,0.01599062]
[1725242822677,0.00817,57774.0,57773.0,0.53526362]
[1725242822895,0.00817,57774.0,57773.0,0.89044562]
[1725242823118,0.00817,57774.0,57773.0,0.02499062]
[1725242823581,0.00817,57774.0,57773.0,0.19808162]
[1725242823810,0.00817,57774.0,57773.0,0.01499062]
[1725242824038,0.00817,57774.0,57773.0,0.01599062]
[1725242824268,0.00817,57774.0,57773.0,0.00599062]
[1725242824512,0.00817,57774.0,57773.0,0.01]
[1725242824735,0.00817,57774.0,57773.0,0.02649141]
[1725242824956,0.181258,57774.0,57773.0,0.021]
[1725242825409,0.527434,57774.0,57773.0,0.02649141]
[1725242825906,0.527434,57774.0,57773.0,0.021]
[1725242826130,0.00817,57774.0,57773.0,0.021]
[1725242826765,0.00817,57774.0,57773.0,0.02649141]
[1725242828357,0.00817,57774.0,57773.0,0.19958241]
[1725242829013,0.00817,57774.0,57773.0,0.54576441]
[1725242829460,0.00817,57774.0,57773.0,0.19958241]
[1725242829917,0.00817,57774.0,57773.0,0.54576441]
[1725242830142,0.00817,57774.0,57773.0,0.89194641]
[1725242832168,0.00817,57774.0,57773.0,0.02649141]
[1725242832424,0.00817,57774.0,57773.0,0.19958241]
[1725242832653,0.00817,57774.0,57773.0,0.54576441]
[1725242832880,0.00817,57774.0,57773.0,0.95754641]
[1725242833329,0.00817,57774.0,57773.0,0.54576441]
[1725242833774,0.00817,57774.0,57773.0,0.19958241]
[1725242833999,0.00817,57774.0,57773.0,0.54576441]
[1725242834884,0.00817,57774.0,57773.0,0.19958241]
[1725242835301,0.00817,57774.0,57773.0,0.54576441]
[1725242836382,0.00817,57774.0,57773.0,0.19958241]
[1725242836821,0.00817,57774.0,57773.0,0.54576441]
[1725242838573,0.00817,57774.0,57773.0,0.19958241]
[1725242839536,0.00817,57774.0,57773.0,0.02649141]
[1725242840185,0.00317,57774.0,57773.0,0.02649141]
[1725242840414,0.176258,57774.0,57773.0,0.02649141]
[1725242841402,0.522434,57774.0,57773.0,0.02649141]
[1725242842117,0.86861,57774.0,57773.0,0.02649141]
[1725242842364,1.32396964,57774.0,57773.0,0.02649141]
[1725242842647,1.24194899,57774.0,57773.0,0.021]
[1725242842836,0.89577299,57774.0,57773.0,0.021]
[1725242843051,0.54959699,57774.0,57773.0,0.021]
[1725242843198,0.89577299,57774.0,57773.0,0.021]
[1725242843415,0.89577299,57774.0,57773.0,0.011]
[1725242843622,0.37650899,57774.0,57767.0,0.0008976]
[1725242843798,0.54959699,57774.0,57773.0,0.007]
[1725242844057,0.89577299,57774.0,57773.0,0.007]
[1725242844272,1.3397966,57774.0,57773.0,0.007]
[1725242844497,1.3397966,57774.0,57773.0,0.004]
[1725242844722,1.214786,57774.0,57773.0,0.004]
[1725242846764,1.214786,57774.0,57773.0,0.007]
[1725242849905,0.522434,57774.0,57773.0,0.007]
[1725242850108,0.00317,57774.0,57773.0,0.180091]
[1725242850308,0.00317,57774.0,57773.0,0.18874656]
[1725242850535,0.00317,57774.0,57773.0,0.53492856]
[1725242851329,0.00317,57774.0,57773.0,1.10822242]
[1725242852483,0.00317,57774.0,57773.0,1.02011056]
[1725242853347,0.00317,57774.0,57773.0,1.01711056]
[1725242853559,0.00317,57774.0,57773.0,1.01311056]
[1725242853771,0.00317,57774.0,57773.0,1.02311056]
[1725242853982,0.00317,57774.0,57773.0,1.03411056]
[1725242854206,0.00317,57774.0,57773.0,1.01311056]
[1725242854420,0.00317,57774.0,57773.0,1.02711056]
[1725242854629,0.00317,57774.0,57773.0,1.04111056]
[1725242857127,0.00317,57774.0,57773.0,1.17984152]
[1725242857800,0.00317,57774.0,57773.0,1.52602352]
[1725242858951,0.00317,57774.0,57773.0,1.04111056]
[1725242859408,0.00317,57774.0,57773.0,0.61812856]
[1725242860999,0.522434,57774.0,57773.0,0.03665556]
[1725242861225,0.92054179,57774.0,57773.0,0.03665556]
[1725242861447,1.214786,57774.0,57773.0,0.028]
[1725242861670,1.34461549,57774.0,57773.0,0.028]
[1725242862396,1.53316246,57774.0,57773.0,0.028]
[1725242862621,1.47810711,57774.0,57773.0,0.028]
[1725242862838,1.3167245,57774.0,57773.0,0.028]
[1725242863073,0.173106,57768.0,57767.0,0.0008976]
[1725242863549,0.173102,57770.0,57767.0,0.0008976]
[1725242863777,0.05196582,57772.0,57768.0,0.0656]
[1725242864005,0.05196582,57774.0,57772.0,0.173092]
[1725242864241,0.0271646,57776.0,57773.0,0.173088]
[1725242864502,0.0271646,57776.0,57773.0,0.01130975]
[1725242864728,0.0271646,57776.0,57775.0,0.173085]
[1725242865183,0.0271646,57776.0,57775.0,0.18438641]
[1725242865409,0.2002466,57776.0,57775.0,0.01130141]
[1725242865656,0.2002466,57776.0,57768.0,0.0716]
[1725242865657,0.17309,57774.0,57769.0,0.173102]
[1725242865895,0.173095,57772.0,57768.0,0.006]
[1725242866115,0.173096,57772.0,57768.0,0.006]
[1725242866329,0.346186,57773.0,57768.0,0.006]
[1725242866330,0.519275,57773.0,57772.0,0.004]
[1725242866558,0.519275,57773.0,57768.0,0.006]
[1725242866559,0.519309,57769.0,57768.0,0.006]
[1725242866785,0.173103,57769.0,57768.0,0.006]
[1725242867249,0.173103,57769.0,57767.0,0.0008976]
[1725242867250,0.173106,57768.0,57767.0,0.0008976]
[1725242867472,0.02716335,57769.0,57767.0,0.0008976]
[1725242867941,0.02716335,57769.0,57768.0,0.173106]
[1725242868214,0.05278291,57774.0,57770.0,0.173097]
[1725242868402,0.05278291,57774.0,57768.0,0.019]
[1725242868630,0.173094,57772.0,57768.0,0.019]
[1725242868851,0.173094,57772.0,57768.0,0.183106]
[1725242869087,0.05278291,57774.0,57768.0,0.183106]
[1725242869088,0.05278291,57774.0,57772.0,0.173093]
[1725242869312,0.05278291,57774.0,57769.0,0.346205]
[1725242869313,0.000816,57774.0,57769.0,0.1438]
[1725242869557,0.000816,57774.0,57773.0,0.519273]
[1725242870900,0.000816,57774.0,57773.0,0.523273]
[1725242871128,0.000816,57774.0,57773.0,0.526273]
[1725242872517,0.000816,57774.0,57773.0,0.872455]
[1725242873981,0.000816,57774.0,57773.0,1.72510309]
[1725242874445,0.000816,57774.0,57773.0,1.63478734]
[1725242874873,0.000816,57774.0,57773.0,1.63178734]
[1725242875128,0.000816,57774.0,57773.0,1.64478734]
[1725242876285,0.000816,57774.0,57773.0,1.64078734]
[1725242876507,0.000816,57774.0,57773.0,1.64178734]
[1725242877109,0.000816,57774.0,57773.0,1.65578734]
[1725242879833,0.00817,57777.0,57773.0,0.44415034]
[1725242880060,0.00817,57777.0,57776.0,1.704438]
[1725242880297,0.00817,57777.0,57776.0,2.055602]
[1725242880517,0.00817,57777.0,57776.0,2.16889924]
[1725242880730,0.00817,57777.0,57776.0,2.17189924]
[1725242882767,0.00817,57777.0,57776.0,2.18589924]
[1725242882998,0.00817,57777.0,57776.0,2.17189924]
[1725242883456,0.00817,57777.0,57776.0,2.19989924]
[1725242883909,0.00817,57777.0,57776.0,2.18589924]
[1725242884153,0.00817,57777.0,57776.0,2.21636794]
[1725242884361,0.00817,57777.0,57776.0,2.23036794]
[1725242884580,0.00817,57777.0,57776.0,1.88420394]
[1725242887020,0.00817,57777.0,57776.0,1.88620394]
[1725242887461,0.00817,57777.0,57776.0,1.88420394]
[1725242889535,0.00817,57777.0,57776.0,1.88620394]
[1725242889975,0.00817,57777.0,57776.0,1.88420394]
[1725242890222,0.00817,57777.0,57776.0,1.88620394]
[1725242890450,0.00817,57777.0,57776.0,1.88420394]
[1725242890678,0.00817,57777.0,57776.0,1.88620394]
[1725242892363,0.00817,57777.0,57776.0,1.85120394]
[1725242892596,0.00817,57777.0,57776.0,1.84373524]
[1725242898643,0.00817,57777.0,57776.0,1.49257124]
[1725242900636,0.346052,57795.0,57785.0,0.346105]
[1725242900867,0.173037,57791.0,57781.0,0.346132]
[1725242901082,0.346074,57792.0,57786.0,0.18430655]
[1725242901264,0.173039,57791.0,57787.0,0.173048]
[1725242901463,0.173039,57791.0,57787.0,0.18429938]
[1725242901665,0.173034,57792.0,57788.0,0.173046]
[1725242901866,0.173034,57792.0,57788.0,0.18429321]
[1725242902068,0.173034,57792.0,57788.0,0.01124721]
[1725242902412,0.173034,57792.0,57788.0,0.18429221]
[1725242902622,0.17304,57790.0,57788.0,0.01124721]
[1725242902844,0.346071,57792.0,57788.0,0.01124721]
[1725242903065,0.173043,57789.0,57788.0,0.01124721]
[1725242903297,0.173052,57786.0,57785.0,0.009]
[1725242903517,0.0986041,57797.0,57788.0,0.01124721]
[1725242903518,0.20019781,57789.0,57788.0,0.01124721]
[1725242903755,0.02715481,57789.0,57784.0,0.346116]
[1725242903974,0.02715481,57789.0,57786.0,0.17305]
[1725242904192,0.02715481,57789.0,57788.0,0.012]
[1725242904467,0.02715481,57789.0,57788.0,0.01124721]
[1725242904673,0.02715481,57789.0,57788.0,0.011]
[1725242904890,0.20019781,57789.0,57788.0,0.02224721]
[1725242905094,0.20019781,57789.0,57788.0,0.01124721]
[1725242905314,0.20019781,57789.0,57788.0,0.014]
[1725242905523,0.20019781,57789.0,57788.0,0.02524721]
[1725242905938,0.02715481,57789.0,57788.0,0.19829321]
[1725242906171,0.02715481,57789.0,57788.0,0.03924721]
[1725242906392,0.02715481,57789.0,57788.0,0.21229321]
[1725242906623,0.173032,57793.0,57789.0,0.173043]
[1725242906835,0.173032,57793.0,57790.0,0.01123887]
[1725242907043,0.000816,57795.0,57790.0,0.18427887]
[1725242907269,0.173844,57795.0,57789.0,0.346085]
[1725242907490,0.173029,57794.0,57791.0,0.01123471]
[1725242907708,0.173029,57794.0,57790.0,0.173039]
[1725242908150,0.173029,57794.0,57791.0,0.01123471]
[1725242908396,0.173029,57794.0,57790.0,0.173039]
[1725242908610,0.173029,57794.0,57791.0,0.009]
[1725242908829,0.173029,57794.0,57792.0,0.01123054]
[1725242909247,0.173841,57795.0,57791.0,0.173037]
[1725242909465,0.173841,57795.0,57793.0,0.01122637]
[1725242909712,0.173841,57795.0,57791.0,0.173037]
[1725242909937,0.000816,57795.0,57794.0,0.8763622]
[1725242910178,0.000816,57795.0,57794.0,0.519084]
[1725242910397,0.000816,57795.0,57794.0,0.8763622]
[1725242912011,0.000816,57795.0,57794.0,1.3715182]
[1725242912258,0.000816,57795.0,57794.0,1.1324622]
[1725242912686,0.000816,57795.0,57794.0,1.4785182]
[1725242912907,0.000816,57795.0,57794.0,1.1324622]
[1725242913129,0.000816,57795.0,57794.0,1.4715182]
[1725242913354,0.000816,57795.0,57794.0,1.4795182]
[1725242913823,0.000816,57795.0,57794.0,1.1474622]
[1725242914479,0.000816,57795.0,57794.0,1.1614622]
[1725242914691,0.000816,57795.0,57794.0,1.5075182]
[1725242914911,0.000816,57795.0,57794.0,1.4935182]
[1725242915343,0.000816,57795.0,57794.0,1.5075182]
[1725242915561,0.000816,57795.0,57794.0,1.66855879]
[1725242915784,0.000816,57795.0,57794.0,1.65455879]
[1725242916018,0.000816,57795.0,57794.0,2.01961479]
[1725242916266,1e-06,57795.0,57794.0,2.35567079]
[1725242916513,1e-06,57795.0,57794.0,2.37867079]
[1725242916766,0.0004,57799.0,57798.0,2.067576]
[1725242917020,0.0004,57799.0,57798.0,2.36562351]
[1725242917480,0.0004,57799.0,57798.0,2.01759151]
[1725242918389,0.0004,57799.0,57798.0,2.01959151]
[1725242918602,0.0004,57799.0,57798.0,2.03359151]
[1725242918845,0.0004,57799.0,57798.0,1.99859151]
[1725242919070,0.0004,57799.0,57798.0,1.98459151]
[1725242919947,0.0004,57799.0,57798.0,1.99859151]
[1725242920401,0.0004,57799.0,57798.0,1.98459151]
[1725242920652,0.0004,57799.0,57798.0,1.64755951]
[1725242920874,0.0004,57799.0,57798.0,1.99859151]
[1725242921471,0.0004,57799.0,57798.0,1.98459151]
[1725242921675,0.0004,57799.0,57798.0,2.00059151]
[1725242922285,0.0004,57799.0,57798.0,2.01059151]
[1725242922652,0.0004,57799.0,57798.0,2.37962351]
[1725242922908,0.0105,57800.0,57799.0,1.717217]
[1725242923144,0.0103845,57814.0,57799.0,1.717217]
[1725242923145,0.0103845,57814.0,57813.0,0.321071]
[1725242923385,0.0103845,57814.0,57813.0,1.68663999]
[1725242923597,0.0103845,57814.0,57813.0,1.69778304]
[1725242923854,0.0103845,57814.0,57813.0,2.04372504]
[1725242924609,0.0033132,57822.0,57821.0,0.75768259]
[1725242924849,1e-06,57839.0,57838.0,0.706586]
[1725242925085,1e-06,57839.0,57838.0,1.97540859]
[1725242925318,1e-06,57839.0,57838.0,1.99840859]
[1725242925561,1e-06,57839.0,57838.0,2.07273972]
[1725242926053,0.00816,57847.0,57846.0,1.87519259]
[1725242926293,0.00816,57847.0,57846.0,1.65244759]
[1725242926560,0.00816,57847.0,57846.0,1.99819259]
[1725242926831,0.00817,57857.0,57856.0,0.533527]
[1725242927082,1.3920061,57892.0,57856.0,0.533527]
[1725242927083,0.50540786,57893.0,57870.0,1.37564759]
[1725242927315,0.00023131,57891.0,57870.0,1.49864759]
[1725242927600,0.00817,57872.0,57870.0,1.50727997]
[1725242927860,0.0062707,57871.0,57870.0,1.50727997]
[1725242928307,0.0062707,57871.0,57870.0,1.13867797]
[1725242928539,0.0062707,57871.0,57870.0,1.21121037]
[1725242929519,0.0062707,57871.0,57870.0,1.55681237]
[1725242930473,0.0062707,57871.0,57870.0,1.58081237]
[1725242930945,0.0062707,57871.0,57870.0,1.15767797]
[1725242931191,0.0062707,57871.0,57870.0,0.79307597]
[1725242931429,0.0062707,57871.0,57870.0,0.02763238]
[1725242931876,0.0062707,57871.0,57870.0,0.01363238]
[1725242932320,0.0062707,57871.0,57865.0,0.16104059]
[1725242932546,0.1790687,57871.0,57870.0,0.01363238]
[1725242933019,0.1790687,57871.0,57851.0,0.16104059]
[1725242933020,0.0848707,57871.0,57851.0,0.16104059]
[1725242933232,0.0062707,57871.0,57870.0,0.186801]
[1725242933457,0.0062707,57871.0,57870.0,0.172801]
[1725242933678,0.172775,57879.0,57872.0,0.172794]
[1725242933934,0.172784,57876.0,57870.0,0.1004048]
[1725242934131,0.345549,57879.0,57870.0,0.014]
[1725242934363,0.172784,57876.0,57870.0,0.1868]
[1725242934584,0.02711321,57878.0,57870.0,0.1868]
[1725242934585,0.518385,57872.0,57871.0,0.01362719]
[1725242934809,0.518385,57872.0,57865.0,0.172814]
[1725242935027,0.172795,57872.0,57866.0,0.172812]
[1725242935440,0.172802,57870.0,57866.0,0.01365317]
[1725242935446,0.17281,57867.0,57866.0,0.01365317]
[1725242935679,0.54763202,57879.0,57866.0,0.01365317]
[1725242935900,0.172811,57867.0,57861.0,0.172827]
[1725242936112,0.002,57879.0,57867.0,0.01091837]
[1725242936337,0.172807,57868.0,57867.0,0.01091837]
[1725242936561,0.172815,57866.0,57860.0,0.172829]
[1725242936791,0.345608,57869.0,57861.0,0.172827]
[1725242936792,0.0066,57867.0,57861.0,0.172827]
[1725242937031,0.0066,57867.0,57861.0,0.01367915]
[1725242937266,0.518473,57862.0,57861.0,0.01367915]
[1725242937478,0.0066,57867.0,57853.0,0.345699]
[1725242937694,0.0066,57867.0,57854.0,0.345695]
[1725242937695,0.172826,57862.0,57854.0,0.345695]
[1725242937923,0.172822,57863.0,57857.0,0.172838]
[1725242938157,0.0066,57867.0,57854.0,0.35941053]
[1725242938158,0.345626,57866.0,57854.0,0.35941053]
[1725242938391,0.172823,57863.0,57858.0,0.01369474]
[1725242938610,0.345626,57866.0,57854.0,0.345695]
[1725242938611,0.172828,57861.0,57854.0,0.172847]
[1725242938834,0.172828,57861.0,57859.0,0.01095163]
[1725242939042,0.172822,57863.0,57856.0,0.172842]
[1725242939265,0.345636,57865.0,57860.0,0.01094748]
[1725242939487,0.172826,57862.0,57855.0,0.172844]
[1725242939715,0.174826,57862.0,57861.0,0.01094332]
[1725242939941,0.002,57862.0,57857.0,0.172838]
[1725242940157,0.17282,57864.0,57861.0,0.01094332]
[1725242940388,0.172814,57866.0,57860.0,0.172829]
[1725242940612,0.345627,57866.0,57862.0,0.01093916]
[1725242940841,0.19993998,57864.0,57861.0,0.01094332]
[1725242941056,0.19993998,57864.0,57863.0,0.010935]
[1725242941276,0.19993998,57864.0,57862.0,0.01093916]
[1725242941491,0.19993998,57864.0,57863.0,0.010935]
[1725242942045,0.19993898,57864.0,57860.0,0.003]
[1725242942269,0.172827,57861.0,57860.0,0.003]
[1725242942695,0.518482,57861.0,57860.0,0.003]
[1725242942943,0.345645,57863.0,57849.0,0.345722]
[1725242942944,0.172843,57856.0,57850.0,0.50540786]
[1725242943156,0.172839,57858.0,57853.0,0.172851]
[1725242943368,0.172839,57858.0,57851.0,0.345714]
[1725242943369,0.345652,57862.0,57851.0,0.345714]
[1725242943588,0.02712191,57858.0,57839.0,0.005]
[1725242943797,0.02712191,57858.0,57850.0,0.345717]
[1725242943798,0.17284,57857.0,57850.0,0.345717]
[1725242944016,0.172841,57857.0,57852.0,0.172852]
[1725242944253,0.02712191,57858.0,57854.0,0.172847]
[1725242944724,0.02712191,57858.0,57841.0,0.005]
[1725242944725,0.172854,57852.0,57843.0,0.34576]
[1725242944952,0.0068,57857.0,57836.0,0.0762]
[1725242945171,0.345699,57854.0,57836.0,0.0762]
[1725242945399,0.345699,57854.0,57847.0,0.172869]
[1725242945400,0.172859,57851.0,57847.0,0.172869]
[1725242945619,0.172859,57851.0,57842.0,0.345767]
[1725242945620,0.172861,57850.0,57845.0,0.172873]
[1725242945860,0.345697,57855.0,57836.0,0.0762]
[1725242946097,0.172852,57853.0,57852.0,0.007]
[1725242946312,0.864258,57853.0,57852.0,0.007]
[1725242946532,0.345743,57847.0,57836.0,0.0762]
[1725242946742,0.39683052,57853.0,57835.0,0.405906]
[1725242946743,0.172872,57846.0,57845.0,0.014]
[1725242946968,0.172862,57850.0,57841.0,0.345771]
[1725242947189,0.172876,57845.0,57838.0,0.345788]
[1725242947412,0.02712826,57847.0,57838.0,0.172894]
[1725242947639,0.02712826,57847.0,57843.0,0.172879]
[1725242947850,0.02712826,57847.0,57844.0,0.172876]
[1725242948301,0.345703,57853.0,57835.0,0.0601]
[1725242948302,0.0068,57857.0,57846.0,0.172872]
[1725242948523,0.172862,57850.0,57846.0,0.172872]
[1725242948952,0.172857,57852.0,57847.0,0.172868]
[1725242949171,0.345687,57856.0,57848.0,0.172864]
[1725242949379,0.345687,57856.0,57848.0,0.01099738]
[1725242949623,0.345697,57854.0,57848.0,0.172865]
[1725242949855,0.172855,57852.0,57849.0,0.01099322]
[1725242950073,0.02712733,57859.0,57849.0,0.18385422]
[1725242950074,0.345693,57855.0,57849.0,0.18385422]
[1725242950295,0.02712733,57859.0,57855.0,0.345689]
[1725242950511,0.345678,57858.0,57856.0,0.01096411]
[1725242950750,0.518518,57857.0,57856.0,0.01096411]
[1725242950985,0.02712733,57859.0,57851.0,0.345713]
[1725242951208,0.172838,57858.0,57856.0,0.01096411]
[1725242951414,0.172838,57858.0,57849.0,0.013]
[1725242951415,0.25464275,57858.0,57845.0,0.0008976]
[1725242951661,0.870982,57858.0,57857.0,0.01095995]
[1725242951889,0.518617,57846.0,57845.0,0.0008976]
[1725242952117,0.9230237,57846.0,57845.0,0.0008976]
[1725242952575,0.5772787,57846.0,57845.0,0.0008976]
[1725242953009,1.12310372,57846.0,57845.0,0.0008976]
[1725242954115,1.0833446,57846.0,57845.0,0.0028976]
[1725242954340,2.2013436,57846.0,57845.0,0.0028976]
[1725242955030,1.8560726,57846.0,57845.0,0.0028976]
[1725242955271,1.8560726,57846.0,57845.0,0.0008976]
[1725242955930,1.8580726,57846.0,57845.0,0.0008976]
[1725242956368,1.8630726,57846.0,57845.0,0.0008976]
[1725242956597,1.0314829,57846.0,57845.0,0.0008976]
[1725242957259,1.0324829,57846.0,57845.0,0.0008976]
[1725242957939,1.3782279,57846.0,57845.0,0.0008976]
[1725242958166,1.3832279,57846.0,57845.0,0.0008976]
[1725242958435,2.2219789,57846.0,57845.0,0.0008976]
[1725242958654,2.2219789,57846.0,57845.0,0.00091823]
[1725242958655,1.3832279,57846.0,57845.0,0.00091823]
[1725242958874,1.55177954,57846.0,57845.0,0.00091823]
[1725242959101,2.14385754,57846.0,57845.0,0.00091823]
[1725242959559,3.41755754,57846.0,57845.0,0.00091823]
[1725242960510,3.42755754,57846.0,57845.0,0.00091823]
[1725242961605,3.43475754,57846.0,57845.0,0.00091823]
[1725242962053,3.105885,57846.0,57845.0,0.00091823]
[1725242962278,2.6591279,57846.0,57845.0,0.00091823]
[1725242963157,2.2993829,57846.0,57845.0,0.00091823]
[1725242963818,2.6451279,57846.0,57845.0,0.00091823]
[1725242964036,2.6441279,57846.0,57845.0,0.00091823]
[1725242964262,2.81267954,57846.0,57845.0,0.00091823]
[1725242964484,1.53997954,57846.0,57845.0,0.00091823]
[1725242964719,1.53897954,57846.0,57845.0,0.00091823]
[1725242964934,1.53997954,57846.0,57845.0,0.00091823]
[1725242965378,1.54397954,57846.0,57845.0,0.00091823]
[1725242965601,1.66417954,57846.0,57845.0,0.00091823]
[1725242965787,1.14556254,57846.0,57845.0,0.00091823]
[1725242966032,1.31843454,57846.0,57845.0,0.00091823]
[1725242966244,1.66417954,57846.0,57845.0,0.00091823]
[1725242966691,1.66517954,57846.0,57845.0,0.00091823]
[1725242967120,1.4976279,57846.0,57845.0,0.00091823]
[1725242967364,1.4986279,57846.0,57845.0,0.00091823]
[1725242967816,1.4966279,57846.0,57845.0,0.00091823]
[1725242968250,2.5577219,57846.0,57845.0,0.00091823]
[1725242968464,2.6947219,57846.0,57845.0,0.00091823]
[1725242968683,3.0404669,57846.0,57845.0,0.00091823]
[1725242968905,3.20901854,57846.0,57845.0,0.00091823]
[1725242969561,4.48271854,57846.0,57845.0,0.00091823]
[1725242969811,0.172944,57822.0,57819.0,0.0654]
[1725242970025,0.1603209,57824.0,57819.0,0.0654]
[1725242970255,0.345884,57823.0,57820.0,0.01301247]
[1725242970717,0.1603209,57824.0,57819.0,0.238353]
[1725242970946,0.1603209,57824.0,57821.0,0.01300726]
[1725242970947,0.172944,57822.0,57821.0,0.01300726]
[1725242971171,0.172947,57821.0,57820.0,0.01301247]
[1725242971392,0.17295,57820.0,57819.0,0.0734]